[Event "84th Georgian Championship 2025"]
[Site "Tbilisi"]
[Date "2025.02.05"]
[Round "3.1"]
[White "Pantsulaia, Levan"]
[Black "Kacharava, Nikolozi"]
[Result "1/2-1/2"]
[Annotator "TA"]
[ECO "A07"]
[WhiteElo "2522"]
[BlackElo "2524"]
[PlyCount "49"]
[EventDate "2025.02.03"]
[EventType "tourn"]
[EventCountry "GEO"]
[SourceTitle "playchess.com"]
[Source "ChessBase"]
[SourceQuality "1"]
[TimeControl "40/5400+30:1800+30"]

{[%evp 11,49,10,37,0,0,0,0,0,0,0,0,0,17,19,7,14,38,33,41,34,35,36,33,0,0,0,0,-32,25,26,61,0,0,-7,0,0,4,0,9,-20]} 1. Nf3 {[%emt 0:00:07]} d5 {[%emt 0:00:11]} 2. g3 {[%emt 0:00:31]} c6 {[%emt 0:00:21]} 3. Bg2 {[%emt 0:00:11]} Bf5 {[%emt 0:00:35]} 4. d3 {[%emt 0:01:39]} Nd7 {[%emt 0:01:41]} 5. O-O {[%emt 0:07:56]} e5 {[%emt 0:00:51]} 6. Nbd2 {[%emt 0:00:29]} Ngf6 {[%emt 0:00:47]} 7. b3 {[%emt 0:13:13][%cal Oe2e4] A07: Réti Opening: New York and Capablanca Systems.} Bd6 {[%emt 0:01:09]} 8. e4 {[%emt 0:00:39]} Bg6 {[%emt 0:01:03]} 9. Nh4 $146 {[%emt 0:01:07]} (9. Bb2 O-O 10. Qe2 Re8 11. h3 a5 12. Nh4 a4 13. Nxg6 hxg6 14. a3 axb3 15. cxb3 {½-½ Zhao,C (2396)-Xi,Q (2261) Tianjin Binhai Cup 2nd 2020 (7)}) 9... Bh5 {[%emt 0:01:10]} 10. Bf3 {[%emt 0:01:27]} Bxf3 {[%emt 0:00:19]} 11. Qxf3 {[%emt 0:00:07]} g6 {[%emt 0:03:27] Prevents Nf5} 12. exd5 {[%emt 0:01:25]} cxd5 {[%emt 0:00:51]} 13. c4 {[%emt 0:00:06]} Qa5 {[%emt 0:13:21]} 14. cxd5 {[%emt 0:00:31]} Qxd5 {[%emt 0:00:54]} 15. Nc4 {[%emt 0:03:08] [#]} Bc7 {[%emt 0:08:03]} 16. Ba3 {[%emt 0:05:52] Rac1 would now be deadly.} O-O-O {[%emt 0:05:56]} 17. Rfe1 {[%emt 0:03:54]} (17. Bd6 $5 b5 18. Bxc7 Kxc7 19. Ne3 Qxf3 20. Nxf3 $14) 17... Rhe8 {[%emt 0:12:23]} 18. Rac1 {[%emt 0:03:44][%cal Ba1c1,Bc1c2,Bc2c4][%mdl 32]} Kb8 $1 {[%emt 0:00:29]} 19. Rc2 {[%emt 0:08:58]} Re6 {[%emt 0:02:57]} (19... Qe6 $15) 20. Rec1 $11 {[%emt 0:08:17]} h6 {[%emt 0:21:13]} 21. Kg2 {[%emt 0:15:36]} ({Better is} 21. Ne3 $14 Qxf3 22. Nxf3) 21... Nb6 {[%emt 0:04:11] The position is equal.} 22. Bb2 {[%emt 0:04:31]} Nxc4 {[%emt 0:06:26]} (22... Qxd3 $2 {perishes.} 23. Qxd3 Rxd3 24. Nxb6 $18) 23. Rxc4 {[%emt 0:00:08]} Bb6 {[%emt 0:04:48]} 24. Re1 {[%emt 0:05:20]} Bc7 {[%emt 0:01:11]} 25. Rec1 {[%emt 0:02:12] Weighted Error Value: White=0.10 (very precise) /Black=0.09 (flawless)   Mistake:       	White=1     	Black=1      Inaccurate:     	White=3     	Black=1      OK:         	White=9     	Black=6      Best:        	---       	Black=3      Strong:       	---       	Black=1} 1/2-1/2

[Event "84th Georgian Championship 2025"]
[Site "Tbilisi"]
[Date "2025.02.05"]
[Round "3.2"]
[White "Paichadze, Luka"]
[Black "Tutisani, Noe"]
[Result "1/2-1/2"]
[Annotator "TA"]
[ECO "C00"]
[WhiteElo "2532"]
[BlackElo "2439"]
[PlyCount "100"]
[EventDate "2025.02.03"]
[EventType "tourn"]
[EventCountry "GEO"]
[SourceTitle "playchess.com"]
[Source "ChessBase"]
[SourceQuality "1"]
[TimeControl "40/5400+30:1800+30"]

{[%evp 9,100,0,0,-7,10,10,0,6,6,4,8,-18,-20,-18,0,-14,-14,-24,-16,-16,-5,-23,5,9,8,18,22,11,20,0,18,18,18,13,14,16,20,15,12,13,18,12,17,12,28,29,22,19,15,16,39,30,33,50,67,58,61,41,58,31,23,18,27,8,8,0,0,0,12,0,0,0,0,0,52,44,73,0,0,0,0,-4,0,0,0,0,0,0,0,0,0,0,0]} 1. e4 {[%emt 0:00:04]} e6 {[%emt 0:00:09]} 2. Qe2 {[%emt 0:02:28]} c5 {[%emt 0:00:19]} 3. g3 {[%emt 0:00:23]} Nc6 {[%emt 0:00:10]} 4. Nf3 {[%emt 0:00:44]} e5 {[%emt 0:02:11]} 5. Bg2 {[%emt 0:01:19]} g6 {[%emt 0:01:14]} 6. d3 {[%emt 0:01:25] C00: French: Unusual White 2nd moves.} d6 {[%emt 0:00:26]} 7. Bg5 $146 {[%emt 0:03:42]} (7. Nc3 Bg7 8. Nd5 Nge7 9. Bg5 Qa5+ 10. Bd2 Qd8 11. Bg5 Qa5+ 12. Bd2 Qd8 13. Nxe7 Qxe7 {1-0 Klein,D (2498)-Kvisvik,B (2290) Barcelona Sants op 16th 2014 (7)}) 7... f6 {[%emt 0:04:16]} 8. Be3 {[%emt 0:00:32]} Bg7 {[%emt 0:00:19]} 9. c3 {[%emt 0:13:12][%cal Bc2c3,Bc3d4][%mdl 32]} Nh6 {[%emt 0:07:08]} 10. d4 {[%emt 0:06:49]} cxd4 $1 {[%emt 0:05:04]} 11. cxd4 {[%emt 0:03:39]} Ng4 {[%emt 0:00:41]} 12. Nc3 {[%emt 0:03:07]} O-O {[%emt 0:03:14]} 13. O-O {[%emt 0:03:49]} Nxe3 {[%emt 0:02:05]} 14. Qxe3 {[%emt 0:00:16]} Bg4 {[%emt 0:02:09]} 15. dxe5 {[%emt 0:00:22]} fxe5 {[%emt 0:00:04]} 16. Nd5 {[%emt 0:04:40]} Qd7 {[%emt 0:00:26]} 17. Rac1 {[%emt 0:01:28]} Rac8 {[%emt 0:00:28]} 18. Rc3 {[%emt 0:06:36]} Kh8 {[%emt 0:00:40]} 19. Ng5 {[%emt 0:10:19]} Nd4 {[%emt 0:15:53] and ...Ne2+ should not be overlooked} 20. f3 {[%emt 0:04:19]} Be6 {[%emt 0:00:21]} 21. Nxe6 {[%emt 0:00:25]} Qxe6 {[%emt 0:01:26]} 22. h4 {[%emt 0:01:33]} Rc6 {[%emt 0:05:24]} 23. Kh2 {[%emt 0:01:07]} Qf7 {[%emt 0:02:05]} 24. Rf2 {[%emt 0:03:53]} a6 {[%emt 0:07:09]} 25. Rd3 {[%emt 0:00:52]} Rc5 {[%emt 0:02:19]} 26. Bh3 {[%emt 0:01:59]} Rc2 {[%emt 0:01:18]} 27. Rxc2 {[%emt 0:03:14]} Nxc2 {[%emt 0:00:08]} 28. Qf2 {[%emt 0:05:37]} (28. Qc1 $5 Nd4 $8 29. Bg2 $14) 28... Nd4 {[%emt 0:01:42][%cal Rd4f3]} 29. Kg2 {[%emt 0:00:30]} Qe8 {[%emt 0:01:23]} 30. Rc3 {[%emt 0:01:36]} Qa4 {[%emt 0:07:20]} 31. b3 {[%emt 0:00:06]} Qa5 {[%emt 0:00:03]} 32. Bg4 {[%emt 0:02:15]} h5 {[%emt 0:06:48]} 33. Bh3 {[%emt 0:00:01]} (33. Bd7 {keeps more tension.} Qd8 34. Rc7 Nxf3 35. Bf5) 33... Qb5 {[%emt 0:00:33]} 34. Kh2 {[%emt 0:02:23]} Kh7 {[%emt 0:03:03]} 35. Bg2 {[%emt 0:00:32]} Rf7 {[%emt 0:00:45]} 36. Rc4 {[%emt 0:03:04]} Qe8 {[%emt 0:01:30]} 37. Qe3 {[%emt 0:01:39]} b5 {[%emt 0:01:31]} 38. Rc3 {[%emt 0:00:52]} a5 {[%emt 0:00:37][%cal Ba6a5,Ba5b4][%mdl 32]} 39. Qd3 {[%emt 0:01:31]} Qf8 {[%emt 0:00:30]} 40. a3 {[%emt 0:00:00]} Qd8 {[%emt 0:00:00]} 41. Qd1 {[%emt 0:12:09]} b4 {[%emt 0:06:11]} 42. axb4 $14 {[%emt 0:00:08]} axb4 {[%emt 0:00:03]} 43. Rd3 {[%emt 0:01:07]} ({White should try} 43. Nxb4 $16 Qa5 44. Nd5) 43... Qa5 $11 {[%emt 0:00:52] The position is equal.} 44. f4 {[%emt 0:11:02]} exf4 {[%emt 0:01:27]} 45. Nxf4 {[%emt 0:01:03]} (45. Rxd4 $2 fxg3+ 46. Kh3 (46. Kxg3 $2 {too greedy.} Be5+ 47. Kh3 Qa7 $19) 46... Qa7 $19 (46... Bxd4 47. Qxd4 Qa7 48. Nf6+ Kh6 49. Ng8+ Kh7 50. Nf6+ Kh6 51. Ng8+ Kh7 52. Nf6+ $11)) 45... Qe5 {[%emt 0:01:52]} 46. Nh3 {[%emt 0:00:20]} Bf6 {[%emt 0:04:01][%cal Oh7g7] Against Ng5+} 47. Rxd4 {[%emt 0:09:53]} Qxd4 {[%emt 0:00:04]} 48. Ng5+ {[%emt 0:00:11]} Kg8 {[%emt 0:00:03]} 49. Qxd4 {[%emt 0:00:06]} Bxd4 {[%emt 0:00:03]} 50. Nxf7 {[%emt 0:00:06]} Kxf7 {[%emt 0:00:04] Weighted Error Value: White=0.07 (flawless) /Black=0.06 (flawless)   Mistake:       	White=1     	Black=1      Inaccurate:     	White=2     	Black=2      OK:         	White=20    	Black=17     Best:        	White=1     	Black=2      Strong:       	---       	Black=1} 1/2-1/2

[Event "84th Georgian Championship 2025"]
[Site "Tbilisi"]
[Date "2025.02.05"]
[Round "3.3"]
[White "Quparadze, Giga"]
[Black "Sanikidze, Tornike"]
[Result "1-0"]
[Annotator "TA"]
[ECO "B81"]
[WhiteElo "2537"]
[BlackElo "2432"]
[PlyCount "115"]
[EventDate "2025.02.03"]
[EventType "tourn"]
[EventCountry "GEO"]
[SourceTitle "playchess.com"]
[Source "ChessBase"]
[SourceQuality "1"]
[TimeControl "40/5400+30:1800+30"]

{[%evp 14,115,24,25,27,-4,26,0,15,0,-11,-12,-27,-19,0,0,0,0,12,25,27,11,18,9,11,10,25,8,15,0,24,41,31,9,150,153,128,129,140,113,244,237,252,231,306,311,316,339,343,344,319,325,314,287,252,127,129,129,120,127,165,143,191,169,203,179,174,111,120,116,117,106,145,121,127,125,587,578,724,508,701,692,520,353,537,422,444,317,452,297,437,436,366,365,29995,222,206,142,548,556,29966,29967,29998,29999]} 1. e4 {[%emt 0:00:01]} c5 {[%emt 0:00:15]} 2. Nf3 {[%emt 0:00:07]} d6 {[%emt 0:00:19]} 3. d4 {[%emt 0:00:10]} cxd4 {[%emt 0:00:08]} 4. Nxd4 {[%emt 0:00:05]} Nf6 {[%emt 0:00:21]} 5. Nc3 {[%emt 0:00:05]} a6 {[%emt 0:00:16]} 6. h3 {[%emt 0:00:12]} e6 {[%emt 0:03:32]} 7. g4 {[%emt 0:00:10]} h6 {[%emt 0:00:43] 7...h6 scores better than 7...Be7.} 8. Bg2 {[%emt 0:00:22]} Be7 {[%emt 0:00:06] B81: Sicilian Scheveningen: Keres Attack.} 9. b3 {[%emt 0:00:06]} Nc6 {[%emt 0:00:05]} 10. Bb2 {[%emt 0:00:37]} Nd7 {[%emt 0:00:01] The position is equal.} 11. Nxc6 $146 {[%emt 0:02:19]} (11. O-O O-O 12. Nce2 Qc7 13. Qd2 Rb8 14. f4 Nxd4 15. Nxd4 b5 16. Rae1 Bb7 17. Qf2 {½-½ Chandran,K (2367)-Antova,G (2255) Pan American Intercollegiate-chT 2023 (3)}) 11... bxc6 {[%emt 0:02:27]} 12. Na4 {[%emt 0:00:02]} e5 $1 {[%emt 0:01:50]} 13. Qd2 {[%emt 0:02:07]} Nf8 {[%emt 0:02:33]} 14. f4 {[%emt 0:05:33]} Ng6 {[%emt 0:10:15]} 15. fxe5 {[%emt 0:00:15]} Bh4+ {[%emt 0:02:12]} 16. Ke2 {[%emt 0:00:06]} dxe5 {[%emt 0:06:18] White must now prevent ...Nf4+.} 17. Qxd8+ {[%emt 0:00:05] A sharp opening} Bxd8 {[%emt 0:00:12]} 18. Rad1 {[%emt 0:00:04]} h5 {[%emt 0:24:53]} 19. Bf3 {[%emt 0:00:06]} Nf4+ {[%emt 0:03:56]} 20. Ke3 {[%emt 0:00:09]} (20. Kf2 {simplifies} f6 21. Bc1 hxg4 22. hxg4 Rxh1 23. Rxh1 Kf7 24. Rh8) 20... f6 {[%emt 0:04:30]} 21. gxh5 {[%emt 0:00:30]} Bc7 {[%emt 0:08:41]} 22. Ba3 {[%emt 0:02:12]} Nxh5 {[%emt 0:12:28]} 23. h4 {[%emt 0:00:53]} Ng3 {[%emt 0:05:13]} (23... Nf4 $11 {remains equal.}) 24. Rhg1 $16 {[%emt 0:01:13] White has strong rooks and is better} f5 {[%emt 0:00:01]} 25. exf5 {[%emt 0:00:12]} (25. Rxg3 $6 f4+ 26. Kf2 fxg3+ 27. Kxg3 Rh7 $14) 25... Nxf5+ {[%emt 0:05:11]} 26. Kf2 {[%emt 0:01:06] White has more active pieces.} Bd7 {[%emt 0:03:33]} (26... Kf7 $16) 27. Be4 $18 {[%emt 0:03:52][%cal Od1d7]} Rxh4 {[%emt 0:01:50]} 28. Bxf5 {[%emt 0:00:05]} Rf4+ {[%emt 0:01:26]} (28... Bxf5 $2 29. Rxg7 Bd8 (29... Bxc2 $2 30. Re7+ Kf8 31. Rxc7+ $18) 30. Rg8+ Kf7 31. Rf8+ (31. Rgxd8 Rf4+ 32. Kg1 Rg4+ 33. Kf1 Rf4+ 34. Kg1 Rg4+ 35. Kf2 Rf4+ 36. Kg1 $11) (31. Rdxd8 Rxd8 32. Rxd8 c5 $18) 31... Kg6 32. Rd6+ (32. Rdxd8 Rxd8 33. Rxd8 Rh2+ 34. Kf3 Bxc2 $18) (32. Rfxd8 Rf4+ 33. Kg3 Rg4+ 34. Kh2 Rh4+ 35. Kg1 Rg4+ 36. Kf2 Rf4+ 37. Kg3 Rg4+ 38. Kf2 Rf4+ $11) 32... Kh5 33. Rxf5+ $18) 29. Ke3 {[%emt 0:00:06]} Rxf5 {[%emt 0:00:18]} 30. Rxg7 {[%emt 0:01:47]} O-O-O {[%emt 0:00:04]} 31. Bd6 {[%emt 0:00:07]} e4 {[%emt 0:01:40]} 32. Bxc7 {[%emt 0:00:20]} (32. Kxe4 $2 Re8+ 33. Be7 Re5+ 34. Kf3 R8xe7 $19 (34... R5xe7 $2 35. Rxe7 Rxe7 36. Rd4 $19)) 32... Kxc7 {[%emt 0:00:01] [#]} 33. b4 {[%emt 0:00:18]} (33. Kxe4 $2 Re8+ 34. Kd4 Rd5+ 35. Kc3 Rxd1 $19) 33... Rd5 {[%emt 0:00:47]} 34. Rd4 {[%emt 0:01:16]} (34. Rxd5 $18 {Intending Rd1 and mate.} cxd5 35. Nc5) 34... Rxd4 {[%emt 0:00:49]} 35. Kxd4 $16 {[%emt 0:00:07][%cal Oa4c5][%mdl 4096] Endgame KRB-KRN} Kb8 {[%emt 0:00:10]} 36. Kxe4 {[%emt 0:00:45]} Bc8 {[%emt 0:00:43]} 37. Nb6 {[%emt 0:01:36]} Be6 {[%emt 0:00:26]} (37... c5 $16) 38. c4 {[%emt 0:00:21]} Rd2 {[%emt 0:00:39]} 39. Ke5 {[%emt 0:00:14]} Bh3 {[%emt 0:00:09]} 40. Rg3 {[%emt 0:00:00]} (40. a3 $18) 40... Kb7 {[%emt 0:00:00]} 41. Na4 {[%emt 0:04:02]} Bf1 {[%emt 0:04:10]} 42. Nc5+ {[%emt 0:04:02]} Ka8 {[%emt 0:01:26]} 43. Rg8+ {[%emt 0:02:16]} (43. Nxa6 $6 Bxc4 44. Nc5 Bxa2 $11) 43... Ka7 {[%emt 0:01:01]} 44. Rg7+ {[%emt 0:00:08]} Ka8 $2 {[%emt 0:00:06][%mdl 8192] [#]} (44... Kb8 $16) 45. Nb3 $1 $18 {[%emt 0:01:21]} (45. Nxa6 Bxc4 46. Nc7+ Kb8 $11) 45... Rxa2 {[%emt 0:08:48]} 46. Na5 {[%emt 0:00:04]} Bg2 {[%emt 0:13:47][%cal Oc6c5]} 47. Kd6 {[%emt 0:00:14][%cal Od6c7] And now Kc7! would win.} Rb2 {[%emt 0:00:03]} 48. Kc5 {[%emt 0:00:11]} (48. Nxc6 Bxc6 49. Kxc6 Rxb4 $11) 48... Bf3 {[%emt 0:00:15]} (48... Kb8 49. Rb7+ (49. Nxc6+ Bxc6 50. Kxc6 Rxb4 $11) 49... Ka8) 49. Rf7 {[%emt 0:00:11]} (49. Nxc6 Bxc6 50. Kxc6 Rxb4 $11) 49... Bg2 {[%emt 0:00:04]} 50. Rc7 {[%emt 0:00:35]} (50. Nxc6 Bxc6 51. Kxc6 Rxb4 $14) 50... Bf3 {[%emt 0:00:26]} (50... Kb8 {might work better.} 51. Rh7 (51. Nxc6+ $2 Kxc7 52. Ne5 Be4 $19) 51... Rb1) 51. Re7 {[%emt 0:01:01]} (51. Nxc6 Bxc6 52. Rxc6 Ka7 $16) 51... Bg2 {[%emt 0:00:13]} (51... Kb8 $142 52. Rb7+ (52. Nxc6+ Bxc6 53. Kxc6 Rxb4 $11) 52... Ka8) 52. Nb7 {[%emt 0:00:14]} (52. Nxc6 Bxc6 53. Kxc6 Rxb4 $11) 52... Kb8 {[%emt 0:01:31]} 53. Nd6 {[%emt 0:00:20]} Ka8 $2 {[%emt 0:00:13]} (53... Bh3 $18 54. Rb7+ (54. Kxc6 Rxb4 55. Re8+ Ka7 $14) 54... Ka8) 54. Ne8 $2 {[%emt 0:00:28]} (54. Kb6 {mates} Rxb4+ 55. Nb5 (55. Kxa6 Kb8 $11) 55... Rxb5+ 56. cxb5 Bh3 57. Re8+ Bc8 58. Rxc8#) 54... Kb8 {[%emt 0:05:32]} 55. Nc7 {[%emt 0:00:09]} Ra2 $2 {[%emt 0:00:49][%mdl 8192]} (55... Kc8 $16 {is more resistant.} 56. Rg7 (56. Nxa6 Rc2 $14) 56... Bf3) 56. Kb6 {[%emt 0:00:07][%cal Re7e8]} Kc8 {[%emt 0:00:03]} 57. Ne6 {[%emt 0:00:05]} (57. Nxa6 Kd8 $18) 57... Rb2 {[%emt 0:00:48]} 58. Ka7 {[%emt 0:01:34] Weighted Error Value: White=0.30/Black=0.66  Loses game:     	---       	Black=2      Mistake:       	White=3     	Black=6      Inaccurate:     	White=4     	Black=4      OK:         	White=21    	Black=12     Best:        	White=7     	Black=5      Strong:       	White=1     	Black=1} 1-0

[Event "84th Georgian Championship 2025"]
[Site "Tbilisi"]
[Date "2025.02.05"]
[Round "3.4"]
[White "Nigalidze, Gaioz"]
[Black "Mchedlishvili, Mikheil"]
[Result "0-1"]
[Annotator "TA"]
[ECO "B90"]
[WhiteElo "2378"]
[BlackElo "2568"]
[PlyCount "84"]
[EventDate "2025.02.03"]
[EventType "tourn"]
[EventCountry "GEO"]
[SourceTitle "playchess.com"]
[Source "ChessBase"]
[SourceQuality "1"]
[TimeControl "40/5400+30:1800+30"]

{[%evp 21,84,7,14,0,0,10,0,0,0,-30,-20,-77,-26,-52,-28,-39,-37,-38,-31,-51,-51,-60,-53,-65,-59,-79,-85,-96,-76,-119,-127,-132,-122,-161,-150,-158,-143,-138,-129,-158,-151,-151,-151,-151,-151,-151,-151,-167,-160,-155,-155,-161,-156,-288,-276,-248,-251,-644,-714,-655,-454,-504,-460,-491,-458]} 1. e4 {[%emt 0:00:06]} c5 {[%emt 0:00:24]} 2. Nf3 {[%emt 0:00:17]} d6 {[%emt 0:00:31]} 3. d4 {[%emt 0:00:23]} cxd4 {[%emt 0:00:07]} 4. Nxd4 {[%emt 0:00:12]} Nf6 {[%emt 0:00:30]} 5. Nc3 {[%emt 0:00:18]} a6 {[%emt 0:00:39]} 6. Be3 {[%emt 0:01:00]} e5 {[%emt 0:01:13]} 7. Nb3 {[%emt 0:00:36]} Be7 {[%emt 0:01:05]} 8. f3 {[%emt 0:01:58]} Be6 {[%emt 0:02:03]} 9. Qd2 {[%emt 0:01:40]} h5 {[%emt 0:01:43]} 10. O-O-O {[%emt 0:02:36]} Nbd7 {[%emt 0:02:39][%cal Bb8d7,Bd7b6,Bb6c4][%mdl 32]} 11. Kb1 {[%emt 0:06:17]} Rc8 {[%emt 0:04:39]} 12. Nd5 {[%emt 0:03:32] B90: Sicilian Najdorf: Unusual White 6th moves, 6 Be3 Ng4 and 6 Be3 e5.} Bxd5 {[%emt 0:10:43]} 13. exd5 {[%emt 0:05:09]} Nb6 {[%emt 0:00:27] Prevents c4} 14. Qa5 {[%emt 0:07:19] The position is equal.} Qc7 {[%emt 0:04:04]} 15. Rd2 $146 {[%emt 0:13:05]} (15. c3 Bd8 16. h4 Nbxd5 17. Qxc7 Bxc7 18. Bg5 O-O 19. g3 Ne7 20. Bg2 Rb8 21. f4 exf4 22. Bxf6 gxf6 23. gxf4 {½-½ Aronian,L (2772)-Giri,A (2776) Bucharest Superbet rapid 2019 (9)}) 15... Bd8 {[%emt 0:03:20]} 16. Ka1 {[%emt 0:09:39]} (16. Bxb6 $11 {keeps the balance.} Qxb6 17. Qa4+ Kf8 18. Bd3) 16... h4 {[%emt 0:05:50]} (16... Nbxd5 $17 17. Rxd5 Qc6 18. Rxe5+ dxe5 19. Qxe5+ Be7) 17. Be2 {[%emt 0:03:13]} Nc4 {[%emt 0:06:32]} (17... Nbxd5 {with more complications.} 18. Rxd5 Qc6 19. Rxe5+ dxe5 20. Qxe5+ Qe6) 18. Qxc7 {[%emt 0:01:04]} Rxc7 {[%emt 0:00:07]} 19. Bxc4 {[%emt 0:00:05]} Rxc4 {[%emt 0:00:08]} 20. c3 {[%emt 0:03:11]} Nd7 {[%emt 0:03:22]} 21. Re1 {[%emt 0:01:31]} f5 {[%emt 0:01:59]} 22. Kb1 {[%emt 0:02:11]} Kf7 {[%emt 0:02:44]} 23. Kc2 {[%emt 0:00:53]} g5 {[%emt 0:00:48] Black continues to play with concentration.} 24. h3 {[%emt 0:02:30]} Kg6 {[%emt 0:01:11]} 25. Kd3 {[%emt 0:04:08]} b5 {[%emt 0:01:59]} 26. Rdd1 {[%emt 0:01:59]} Bb6 {[%emt 0:04:09]} 27. Bxb6 {[%emt 0:01:56]} Nxb6 {[%emt 0:00:07]} 28. Ke2 {[%emt 0:01:43]} Rhc8 {[%emt 0:02:45]} 29. a3 {[%emt 0:01:13]} R4c7 {[%emt 0:01:16]} 30. Kf2 {[%emt 0:00:51]} Nc4 {[%emt 0:02:21]} 31. Re2 {[%emt 0:05:12]} Kh5 {[%emt 0:02:32]} 32. Nc1 {[%emt 0:05:47]} Rg7 {[%emt 0:02:01] Black is more active.} 33. Nd3 {[%emt 0:00:40]} a5 {[%emt 0:01:05]} 34. Kf1 {[%emt 0:02:06]} g4 {[%emt 0:03:15] Black has a king side majority} 35. fxg4+ {[%emt 0:04:27]} fxg4 {[%emt 0:00:16]} 36. hxg4+ {[%emt 0:01:01]} Rxg4 {[%emt 0:00:19] Threatens to win with ...Rg3.} 37. Ne1 {[%emt 0:01:42]} (37. Nf2 $17 {might work better.} Rg3 38. Rde1) 37... Rg3 {[%emt 0:03:28]} 38. Rd3 {[%emt 0:02:15]} Rf8+ {[%emt 0:03:47]} 39. Rf2 $2 {[%emt 0:01:10] [#]} (39. Kg1) 39... Rxf2+ $19 {[%emt 0:00:48] Black is clearly winning.} ({Not} 39... Nxb2 40. Rxf8 Nxd3 41. Rh8+ Kg6 42. Rg8+ (42. Rxh4 $2 {perishes.} Nxe1 43. Kxe1 Rxc3 $19) 42... Kf5 43. Rxg3 Nxe1 44. Rh3 $14) 40. Kxf2 {[%emt 0:00:00]} Nxb2 {[%emt 0:00:00]} 41. Rxg3 {[%emt 0:00:12]} hxg3+ {[%emt 0:00:28]} 42. Kxg3 {[%emt 0:00:38]} Na4 {[%emt 0:00:28] Weighted Error Value: White=0.34/Black=0.13 (very precise)   Mistake:       	White=3     	Black=1      Inaccurate:     	White=4     	---        OK:         	White=6     	Black=15     Best:        	White=1     	Black=2} 0-1

[Event "84th Georgian Championship 2025"]
[Site "Tbilisi"]
[Date "2025.02.05"]
[Round "3.5"]
[White "Petriashvili, Nikoloz"]
[Black "Gagunashvili, Merab"]
[Result "1/2-1/2"]
[Annotator "TA"]
[ECO "C42"]
[WhiteElo "2450"]
[BlackElo "2541"]
[PlyCount "53"]
[EventDate "2025.02.03"]
[EventType "tourn"]
[EventCountry "GEO"]
[SourceTitle "playchess.com"]
[Source "ChessBase"]
[SourceQuality "1"]
[TimeControl "40/5400+30:1800+30"]

{[%evp 17,53,35,24,22,30,10,24,7,20,0,28,0,15,6,16,8,8,10,11,11,4,8,16,8,26,0,0,0,0,-3,-4,-18,0,0,0,-10,0,0]} 1. e4 {[%emt 0:07:32]} e5 {[%emt 0:00:05]} 2. Nf3 {[%emt 0:00:03]} Nf6 {[%emt 0:00:11]} 3. Nxe5 {[%emt 0:00:17]} d6 {[%emt 0:00:05]} 4. Nf3 {[%emt 0:00:02]} Nxe4 {[%emt 0:00:08]} 5. d4 {[%emt 0:00:01]} d5 {[%emt 0:02:28]} 6. Bd3 {[%emt 0:00:09]} Bd6 {[%emt 0:00:25]} 7. O-O {[%emt 0:00:20]} O-O {[%emt 0:00:06]} 8. c4 {[%emt 0:00:49]} c6 {[%emt 0:00:05]} 9. Re1 {[%emt 0:00:54]} Bf5 {[%emt 0:16:29]} 10. Qc2 {[%emt 0:02:21]} Na6 {[%emt 0:04:00][%cal Bb8a6,Ba6c7,Bc7e8][%mdl 32]} 11. a3 {[%emt 0:00:01] Prevents Nb4} Bg6 {[%emt 0:04:58]} 12. c5 {[%emt 0:06:18] White has an edge.} Bb8 {[%emt 0:01:25]} 13. Nbd2 {[%emt 0:02:09]} Nf6 {[%emt 1:06:35]} 14. b4 {[%emt 0:02:44]} Nc7 {[%emt 0:00:00]} 15. Bxg6 {[%emt 0:01:10]} hxg6 {[%emt 0:00:00]} 16. Ng5 {[%emt 0:03:01]} Re8 {[%emt 0:00:00]} 17. Bb2 {[%emt 0:01:55]} (17. Rxe8+ {simplifies} Qxe8 18. Ndf3 Ne6 19. Bd2) 17... Nh7 {[%emt 0:00:00]} 18. Rxe8+ {[%emt 0:05:15]} Nxe8 {[%emt 0:00:00]} 19. Nxh7 {[%emt 0:05:45]} Kxh7 {[%emt 0:00:00]} 20. Qb3 {[%emt 0:02:11]} Nc7 {[%emt 0:00:00]} 21. Qh3+ {[%emt 0:01:27]} Kg8 {[%emt 0:00:00] The position is equal.} 22. Re1 {[%emt 0:00:01]} Ne6 {[%emt 0:00:00]} 23. Rxe6 {[%emt 0:04:09]} fxe6 {[%emt 0:00:00]} 24. Qxe6+ {[%emt 0:00:03]} Kh7 {[%emt 0:00:00]} 25. Qh3+ {[%emt 0:02:35]} (25. Nf3 $5 Bf4 $8 26. Qh3+ Bh6 27. Bc1 $11) 25... Kg8 {[%emt 0:00:00]} 26. Qe6+ {[%emt 0:00:02]} Kh7 {[%emt 0:00:00]} 27. Qh3+ {[%emt 0:00:04] An uneventful encounter.   Weighted Error Value: White=0.06 (flawless) /Black=0.07 (flawless) .  Inaccurate:     	White=2     	Black=1      OK:         	White=7     	Black=5      Best:        	---       	Black=2} (27. Nf3 $5 Bf4 $8 28. Qh3+ Bh6 29. Bc1 $11) 1/2-1/2

[Event "84th Georgian Championship 2025"]
[Site "Tbilisi"]
[Date "2025.02.06"]
[Round "4.1"]
[White "Mchedlishvili, Mikheil"]
[Black "Pantsulaia, Levan"]
[Result "1/2-1/2"]
[Annotator "TA"]
[ECO "B19"]
[WhiteElo "2568"]
[BlackElo "2522"]
[PlyCount "35"]
[EventDate "2025.02.03"]
[EventType "tourn"]
[EventCountry "GEO"]
[SourceTitle "playchess.com"]
[Source "ChessBase"]
[SourceQuality "1"]
[TimeControl "40/5400+30:1800+30"]

{[%evp 25,35,21,29,0,37,28,34,39,39,34,39,30]} 1. e4 {[%emt 0:03:21]} c6 {[%emt 0:00:08]} 2. d4 {[%emt 0:00:22]} d5 {[%emt 0:00:07]} 3. Nd2 {[%emt 0:00:18]} dxe4 {[%emt 0:00:09]} 4. Nxe4 {[%emt 0:00:08]} Bf5 {[%emt 0:00:07]} 5. Ng3 {[%emt 0:00:19]} Bg6 {[%emt 0:00:08]} 6. h4 {[%emt 0:00:22]} h6 {[%emt 0:00:12]} 7. Nf3 {[%emt 0:00:17]} Nd7 {[%emt 0:00:12]} 8. Bd3 {[%emt 0:00:28]} Bxd3 {[%emt 0:00:14]} 9. Qxd3 {[%emt 0:00:08]} e6 {[%emt 0:00:11]} 10. Bf4 {[%emt 0:00:35]} Qa5+ {[%emt 0:03:03]} 11. Bd2 {[%emt 0:00:34]} Qc7 {[%emt 0:00:06]} 12. O-O-O {[%emt 0:00:46]} Ngf6 {[%emt 0:00:09]} 13. Ne4 {[%emt 0:00:36]} O-O-O {[%emt 0:00:50]} 14. Kb1 {[%emt 0:00:52]} Nxe4 {[%emt 0:01:04]} 15. Qxe4 {[%emt 0:00:08]} Bd6 {[%emt 0:00:35]} 16. c4 {[%emt 0:02:01] White is slightly better.} Nf6 {[%emt 0:03:16]} 17. Qe2 {[%emt 0:00:21]} c5 {[%emt 0:00:04]} 18. Bc3 {[%emt 0:00:13] White took control after the opening.   Weighted Error Value: White=0.08 (flawless) /Black=0.12 (very precise) .  Inaccurate:     	---       	Black=1      OK:         	White=3     	Black=1} 1/2-1/2